fUSD/lending_fUSD_20250107
["ID","MTS","AMOUNT","RATE_DAILY","PERIOD"]
[348021282,1736268649670,-500.0,9.321e-05,2]
[348021283,1736268649680,-791.82,9.321e-05,2]
[348021284,1736268649690,-301.43992604,9.321e-05,2]
[348021285,1736268650074,-198.56007396,9.321e-05,2]
[348021286,1736268650084,-241.25992614,9.321e-05,2]
[348021287,1736268650116,-258.74007386,9.321e-05,2]
[348021288,1736268650126,-500.0,9.321e-05,2]
[348021289,1736268650135,-200.62692604,9.321e-05,2]
[348021290,1736268650146,-299.37307396,9.321e-05,2]
[348021291,1736268650155,-223.49091925,9.321e-05,2]
[348021292,1736268650167,-276.50908075,9.321e-05,2]
[348021293,1736268650176,-500.0,9.321e-05,2]
[348021294,1736268650186,-500.0,9.321e-05,2]
[348021295,1736268650195,-927.26,9.321e-05,2]
[348021296,1736268650204,-558.34,9.321e-05,2]
[348021297,1736268650213,-500.0,9.321e-05,2]
[348021298,1736268650223,-58.59091925,9.321e-05,2]
[348021299,1736268650234,-441.40908075,9.321e-05,2]
[348021300,1736268650243,-655.3,9.321e-05,2]
[348021301,1736268650252,-557.31,9.321e-05,2]
[348021302,1736268650261,-656.36,9.321e-05,2]
[348021303,1736268650271,-500.0,9.321e-05,2]
[348021304,1736268650281,-918.28,9.321e-05,2]
[348021305,1736268650290,-582.18,9.321e-05,2]
[348021306,1736268650299,-304.76091925,9.321e-05,2]
[348021307,1736268650310,-195.23908075,9.321e-05,2]
[348021308,1736268650319,-685.99,9.321e-05,2]
[348021309,1736268650328,-500.0,9.321e-05,2]
[348021310,1736268650337,-500.0,9.321e-05,2]
[348021311,1736268650346,-419.77091925,9.321e-05,2]
[348021312,1736268650357,-80.22908075,9.321e-05,2]
[348021313,1736268650367,-583.44,9.321e-05,2]
[348021314,1736268650375,-500.0,9.321e-05,2]
[348021315,1736268650385,-251.54127668,9.321e-05,2]
[348021316,1736268650413,-389.91872332,9.321e-05,2]
[348021317,1736268650423,-612.42,9.321e-05,2]
[348021318,1736268650432,-271.93325503,9.321e-05,2]
[348021319,1736268650449,-228.06674497,9.321e-05,2]
[348021320,1736268650459,-520.7,9.321e-05,2]
[348021321,1736268650468,-500.0,9.321e-05,2]
[348021322,1736268650478,-500.0,9.321e-05,2]
[348021323,1736268650488,-500.0,9.321e-05,2]
[348021324,1736268650498,-500.0,9.321e-05,2]
[348021325,1736268650507,-505.14,9.321e-05,2]
[348021326,1736268650516,-530.59875418,9.321e-05,2]
[348021327,1736268650526,-500.0,9.321e-05,2]
[348021328,1736268650535,-500.0,9.321e-05,2]
[348021329,1736268650545,-735.13,9.321e-05,2]
[348021330,1736268650558,-500.0,9.321e-05,2]
[348021331,1736268650568,-512.9,9.321e-05,2]
[348021332,1736268650578,-500.0,9.321e-05,2]
[348021333,1736268650588,-500.0,9.321e-05,2]
[348021334,1736268650597,-500.0,9.321e-05,2]
[348021335,1736268650607,-500.0,9.321e-05,2]
[348021336,1736268650616,-500.0,9.321e-05,2]
[348021337,1736268650626,-500.0,9.321e-05,2]
[348021338,1736268650635,-500.0,9.321e-05,2]
[348021339,1736268650644,-597.15,9.321e-05,2]
[348021340,1736268650654,-921.38,9.321e-05,2]
[348021341,1736268650663,-500.0,9.321e-05,2]
[348021342,1736268650673,-477.89153307,9.321e-05,2]
[348021343,1736268650682,-500.0,9.321e-05,2]
[348021344,1736268650692,-500.0,9.321e-05,2]
[348021345,1736268650702,-851.41,9.321e-05,2]
[348021346,1736268650711,-500.0,9.321e-05,2]
[348021347,1736268650721,-500.0,9.321e-05,2]
[348021348,1736268650731,-500.0,9.321e-05,2]
[348021349,1736268650740,-500.0,9.321e-05,2]
[348021350,1736268650751,-500.0,9.321e-05,2]
[348021351,1736268650761,-500.0,9.321e-05,2]
[348021352,1736268650771,-500.0,9.321e-05,2]
[348021353,1736268650780,-500.0,9.321e-05,2]
[348021354,1736268650790,-500.0,9.321e-05,2]
[348021355,1736268650800,-500.0,9.321e-05,2]
[348021356,1736268650810,-500.0,9.321e-05,2]
[348021357,1736268650820,-538.02,9.321e-05,2]
[348021358,1736268650830,-526.88,9.321e-05,2]
[348021359,1736268650840,-969.14,9.321e-05,2]
[348021360,1736268650850,-500.0,9.321e-05,2]
[348021361,1736268650860,-850.4,9.321e-05,2]
[348021362,1736268650870,-500.0,9.321e-05,2]
[348021363,1736268650880,-500.0,9.321e-05,2]
[348021364,1736268650890,-500.0,9.321e-05,2]
[348021365,1736268650899,-500.0,9.321e-05,2]
[348021366,1736268650909,-1025.87,9.321e-05,2]
[348021367,1736268650918,-877.47,9.321e-05,2]
[348021368,1736268650928,-500.0,9.321e-05,2]
[348021369,1736268650938,-500.0,9.321e-05,2]
[348021370,1736268650947,-500.0,9.321e-05,2]
[348021371,1736268650956,-615.53,9.321e-05,2]
[348021372,1736268650967,-500.0,9.321e-05,2]
[348021373,1736268650979,-500.0,9.321e-05,2]
[348021374,1736268650990,-500.0,9.321e-05,2]
[348021375,1736268651001,-590.64,9.321e-05,2]
[348021376,1736268651012,-500.0,9.321e-05,2]
[348021377,1736268651022,-500.0,9.321e-05,2]
[348021378,1736268651034,-585.59,9.321e-05,2]
[348021379,1736268651045,-500.0,9.321e-05,2]
[348021380,1736268651055,-500.0,9.321e-05,2]
[348021381,1736268651066,-646.69,9.321e-05,2]
[348021382,1736268651077,-389.33678349,9.321e-05,2]
[348021383,1736268651089,-110.66321651,9.321e-05,2]
[348021384,1736268651099,-500.0,9.321e-05,2]
[348021385,1736268651108,-365.80374145,9.539e-05,2]
[348021386,1736268651148,-500.0,9.046e-05,2]
[348021387,1736268651157,-100.0,9.319e-05,2]
[348021388,1736268651169,-717.02,9.319e-05,2]
[348021389,1736268651178,-134.19625855,9.539e-05,2]
[348021390,1736268651187,-152.04593703,9.539e-05,2]
[348021391,1736268651196,-500.0,9.539e-05,2]
[348021392,1736268651207,-501.05531238,9.539e-05,2]
[348021393,1736268651217,-519.02490773,9.539e-05,2]
[348021394,1736268651228,-151.03109157,9.539e-05,2]
[348021395,1736268651238,-498.77525735,9.583e-05,2]
[348021396,1736268651247,-500.0,9.593e-05,2]
[348021397,1736268651256,-1321.84,9.593e-05,2]
[348021398,1736268651266,-500.0,9.594e-05,2]
[348021399,1736268651275,-556.07,9.594e-05,2]
[348021400,1736268651285,-850.62,9.594e-05,2]
[348021401,1736268651294,-500.0,9.594e-05,2]
[348021402,1736268651304,-500.0,9.594e-05,2]
[348021403,1736268651313,-500.0,9.594e-05,2]
[348021404,1736268651323,-590.0,9.594e-05,2]
[348021405,1736268651332,-500.0,9.594e-05,2]
[348021406,1736268651342,-500.0,9.594e-05,2]
[348021407,1736268651352,-733.92,9.594e-05,2]
[348021408,1736268651363,-836.91,9.594e-05,2]
[348021409,1736268651373,-722.53,9.594e-05,2]
[348021410,1736268651382,-500.0,9.594e-05,2]
[348021411,1736268651391,-897.94,9.594e-05,2]
[348021412,1736268651400,-500.0,9.594e-05,2]
[348021413,1736268651410,-500.0,9.594e-05,2]
[348021414,1736268651419,-500.0,9.594e-05,2]
[348021415,1736268651428,-500.0,9.594e-05,2]
[348021416,1736268651438,-500.0,9.594e-05,2]
[348021417,1736268651447,-797.59,9.594e-05,2]
[348021418,1736268651457,-593.4,9.594e-05,2]
[348021419,1736268651466,-500.0,9.594e-05,2]
[348021420,1736268651477,-500.0,9.594e-05,2]
[348021421,1736268651691,-500.0,9.594e-05,2]
[348021422,1736268651704,-910.72,9.594e-05,2]
[348021423,1736268651714,-519.37,9.594e-05,2]
[348021424,1736268651724,-812.74,9.594e-05,2]
[348021425,1736268651733,-500.0,9.594e-05,2]
[348021426,1736268651743,-500.0,9.594e-05,2]
[348021427,1736268651754,-531.28,9.594e-05,2]
[348021428,1736268651764,-500.0,9.594e-05,2]
[348021429,1736268651774,-528.34,9.594e-05,2]
[348021430,1736268651784,-1325.98,9.594e-05,2]
[348021431,1736268651793,-826.1,9.594e-05,2]
[348021432,1736268651803,-500.0,9.594e-05,2]
[348021433,1736268651813,-500.0,9.594e-05,2]
[348021434,1736268651822,-582.94,9.594e-05,2]
[348021435,1736268651831,-960.33,9.594e-05,2]
[348021436,1736268651840,-749.9,9.594e-05,2]
[348021437,1736268651850,-500.0,9.594e-05,2]
[348021438,1736268651859,-824.34,9.594e-05,2]
[348021439,1736268651868,-500.0,9.594e-05,2]
[348021440,1736268651878,-1090.09,9.594e-05,2]
[348021441,1736268651887,-557.29,9.594e-05,2]
[348021442,1736268651896,-663.62,9.594e-05,2]
[348021443,1736268651906,-557.55,9.594e-05,2]
[348021444,1736268651915,-500.0,9.594e-05,2]
[348021445,1736268651924,-500.0,9.594e-05,2]
[348021446,1736268651934,-500.0,9.594e-05,2]
[348021447,1736268651943,-1547.89,9.594e-05,2]
[348021448,1736268651952,-500.0,9.594e-05,2]
[348021449,1736268651962,-913.99,9.594e-05,2]
[348021450,1736268651971,-500.0,9.594e-05,2]
[348021451,1736268651982,-500.0,9.594e-05,2]
[348021452,1736268651992,-500.0,9.594e-05,2]
[348021453,1736268652002,-582.8,9.594e-05,2]
[348021454,1736268652012,-500.0,9.594e-05,2]
[348021455,1736268652021,-735.69,9.594e-05,2]
[348021456,1736268652031,-500.0,9.594e-05,2]
[348021457,1736268652040,-548.74,9.594e-05,2]
[348021458,1736268652050,-567.82,9.594e-05,2]
[348021459,1736268652059,-500.0,9.594e-05,2]
[348021460,1736268652069,-609.14,9.594e-05,2]
[348021461,1736268652078,-853.91,9.594e-05,2]
[348021462,1736268652087,-500.0,9.594e-05,2]
[348021463,1736268652097,-1921.49,9.594e-05,2]
[348021464,1736268652106,-1230.46,9.594e-05,2]
[348021465,1736268652116,-500.0,9.594e-05,2]
[348021466,1736268652125,-553.12,9.594e-05,2]
[348021467,1736268652135,-863.2,9.594e-05,2]
[348021468,1736268652144,-531.05,9.594e-05,2]
[348021469,1736268652153,-500.0,9.594e-05,2]
[348021470,1736268652162,-500.0,9.594e-05,2]
[348021471,1736268652172,-500.0,9.594e-05,2]
[348021472,1736268652181,-773.27,9.594e-05,2]
[348021473,1736268652191,-533.48576157,9.594e-05,2]
[348021474,1736268652200,-831.05,9.594e-05,2]
[348021475,1736268652210,-2392.33,9.594e-05,2]
[348021476,1736268652219,-514.77,9.594e-05,2]
[348021477,1736268652229,-912.02,9.594e-05,2]
[348021478,1736268652239,-1029.27,9.594e-05,2]
[348021479,1736268652249,-1494.48,9.594e-05,2]
[348021480,1736268652259,-500.0,9.594e-05,2]
[348021481,1736268652268,-2127.93,9.594e-05,2]
[348021482,1736268652278,-500.0,9.594e-05,2]
[348021483,1736268652287,-1004.88,9.594e-05,2]
[348021484,1736268652296,-858.75,9.594e-05,2]
[348021485,1736268652305,-1358.1,9.594e-05,2]
[348021486,1736268652315,-2342.11,9.594e-05,2]
[348021487,1736268652326,-539.24,9.594e-05,2]
[348021488,1736268652336,-609.78,9.594e-05,2]
[348021489,1736268652345,-1333.64,9.594e-05,2]
[348021490,1736268652355,-500.0,9.594e-05,2]
[348021491,1736268652365,-2822.03,9.594e-05,2]
[348021492,1736268652374,-602.54,9.594e-05,2]
[348021493,1736268652383,-500.0,9.594e-05,2]
[348021494,1736268652393,-1051.54,9.594e-05,2]
[348021495,1736268652403,-1190.44,9.594e-05,2]
[348021496,1736268652412,-793.26,9.594e-05,2]
[348021497,1736268652422,-1546.56,9.594e-05,2]
[348021498,1736268652432,-722.34,9.594e-05,2]
[348021499,1736268652442,-500.0,9.594e-05,2]
[348021500,1736268652452,-1149.51,9.594e-05,2]
[348021501,1736268652462,-1887.44,9.594e-05,2]
[348021502,1736268652473,-500.0,9.594e-05,2]
[348021503,1736268652482,-865.45,9.594e-05,2]
[348021504,1736268652491,-807.88,9.594e-05,2]
[348021505,1736268652500,-500.0,9.594e-05,2]
[348021506,1736268652510,-910.92,9.594e-05,2]
[348021507,1736268652520,-500.0,9.594e-05,2]
[348021508,1736268652530,-500.0,9.594e-05,2]
[348021509,1736268652539,-500.0,9.594e-05,2]
[348021510,1736268652552,-500.0,9.594e-05,2]
[348021511,1736268652562,-1777.29,9.594e-05,2]
[348021512,1736268652572,-706.99,9.594e-05,2]
[348021513,1736268652582,-757.84,9.594e-05,2]
[348021514,1736268652592,-500.0,9.594e-05,2]
[348021515,1736268652602,-5860.4,9.594e-05,2]
[348021516,1736268652611,-500.0,9.594e-05,2]
[348021517,1736268652622,-500.0,9.594e-05,2]
[348021518,1736268652632,-1001.12,9.594e-05,2]
[348021519,1736268652642,-218.463418,9.594e-05,2]
[348021520,1736268652652,-2561.02,9.594e-05,2]
[348021521,1736268652661,-500.0,9.594e-05,2]
[348021522,1736268652671,-1084.58,9.594e-05,2]
[348021523,1736268652681,-4263.82,9.594e-05,2]
[348021524,1736268652690,-500.0,9.594e-05,2]
[348021525,1736268652699,-1460.17,9.594e-05,2]
[348021526,1736268652710,-500.0,9.594e-05,2]
[348021527,1736268652719,-233.574732,9.594e-05,2]
[348021528,1736268652730,-1616.76,9.594e-05,2]
[348021529,1736268652740,-500.0,9.594e-05,2]
[348021530,1736268652750,-2807.32104133,9.594e-05,2]
[348021531,1736268652765,-116.30895867,9.594e-05,2]
[348021532,1736268652775,-1003.09,9.594e-05,2]
[348021533,1736268652785,-398.86921737,9.594e-05,2]
[348021534,1736268652794,-942.56,9.594e-05,2]
[348021535,1736268652803,-500.0,9.594e-05,2]
[348021536,1736268652813,-4714.17,9.594e-05,2]
[348021537,1736268652823,-4374.14,9.594e-05,2]
[348021538,1736268652832,-592.62,9.594e-05,2]
[348021539,1736268652842,-500.0,9.594e-05,2]
[348021540,1736268652851,-2206.35,9.594e-05,2]
[348021541,1736268652861,-1217.32,9.594e-05,2]
[348021542,1736268652870,-500.0,9.594e-05,2]
[348021543,1736268652879,-500.0,9.594e-05,2]
[348021544,1736268652890,-779.65,9.594e-05,2]
[348021545,1736268652899,-544.8,9.594e-05,2]
[348021546,1736268652908,-2901.84,9.594e-05,2]
[348021547,1736268652917,-794.55,9.594e-05,2]
[348021548,1736268652926,-2312.21,9.594e-05,2]
[348021549,1736268652935,-884.2,9.594e-05,2]
[348021550,1736268652945,-500.0,9.594e-05,2]
[348021551,1736268652954,-604.36,9.594e-05,2]
[348021552,1736268652963,-1059.63,9.594e-05,2]
[348021553,1736268652973,-779.93,9.594e-05,2]
[348021554,1736268652982,-1153.17,9.594e-05,2]
[348021555,1736268652991,-500.0,9.594e-05,2]
[348021556,1736268653001,-500.0,9.594e-05,2]
[348021557,1736268653011,-500.0,9.594e-05,2]
[348021558,1736268653020,-559.47,9.594e-05,2]
[348021559,1736268653029,-1870.96,9.594e-05,2]
[348021560,1736268653039,-782.74,9.594e-05,2]
[348021561,1736268653048,-500.0,9.594e-05,2]
[348021562,1736268653058,-595.86,9.594e-05,2]
[348021563,1736268653068,-1083.61,9.594e-05,2]
[348021564,1736268653077,-500.0,9.594e-05,2]
[348021565,1736268653087,-500.0,9.594e-05,2]
[348021566,1736268653097,-500.0,9.594e-05,2]
[348021567,1736268653107,-715.2,9.594e-05,2]
[348021568,1736268653116,-1115.91,9.594e-05,2]
[348021569,1736268653126,-818.1,9.594e-05,2]
[348021570,1736268653135,-500.0,9.594e-05,2]
[348021571,1736268653145,-500.0,9.595e-05,2]
[348021572,1736268653154,-500.0,9.595e-05,2]
[348021573,1736268653163,-500.0,9.595e-05,2]
[348021574,1736268653173,-500.0,9.595e-05,2]
[348021575,1736268653182,-500.0,9.595e-05,2]
[348021576,1736268653191,-500.0,9.595e-05,2]
[348021577,1736268653201,-500.0,9.595e-05,2]
[348021578,1736268653211,-623.12076002,9.595e-05,2]
[348021579,1736268653220,-500.0,9.595e-05,2]
[348021580,1736268653230,-500.0,9.595e-05,2]
[348021581,1736268653239,-500.0,9.595e-05,2]
[348021582,1736268653250,-457.49259752,9.595e-05,2]
[348021583,1736268653259,-533.91,9.595e-05,2]
[348021584,1736268653268,-500.0,9.595e-05,2]
[348021585,1736268653277,-500.0,9.595e-05,2]
[348021586,1736268653287,-500.0,9.595e-05,2]
[348021587,1736268653296,-500.0,9.595e-05,2]
[348021588,1736268653306,-500.0,9.595e-05,2]
[348021589,1736268653315,-500.0,9.595e-05,2]
[348021590,1736268653325,-500.0,9.595e-05,2]
[348021591,1736268653335,-500.0,9.595e-05,2]
[348021592,1736268653345,-500.0,9.595e-05,2]
[348021593,1736268653356,-500.0,9.595e-05,2]
[348021594,1736268653366,-500.0,9.595e-05,2]
[348021595,1736268653375,-500.0,9.595e-05,2]
[348021596,1736268653384,-500.0,9.595e-05,2]
[348021597,1736268653394,-538.96,9.595e-05,2]
[348021598,1736268653403,-500.0,9.595e-05,2]
[348021599,1736268653413,-500.0,9.595e-05,2]
[348021600,1736268653422,-500.0,9.595e-05,2]
[348021601,1736268653432,-500.0,9.595e-05,2]
[348021602,1736268653441,-500.0,9.595e-05,2]
[348021603,1736268653451,-500.0,9.595e-05,2]
[348021604,1736268653460,-500.0,9.595e-05,2]
[348021605,1736268653469,-845.74,9.595e-05,2]
[348021606,1736268653481,-500.0,9.595e-05,2]
[348021607,1736268653490,-500.0,9.595e-05,2]
[348021608,1736268653499,-500.0,9.595e-05,2]
[348021609,1736268653509,-500.0,9.595e-05,2]
[348021610,1736268653518,-307.43,9.595e-05,2]
[348021611,1736268653532,-316.69,9.595e-05,2]
[348021612,1736268653541,-592.86,9.595e-05,2]
[348021613,1736268653551,-500.0,9.595e-05,2]
[348021614,1736268653561,-600.81,9.595e-05,2]
[348021615,1736268653573,-500.0,9.595e-05,2]
[348021616,1736268653582,-500.0,9.595e-05,2]
[348021617,1736268653591,-519.72,9.595e-05,2]
[348021618,1736268653603,-500.0,9.595e-05,2]
[348021619,1736268653612,-819.07,9.595e-05,2]
[348021620,1736268653621,-500.0,9.595e-05,2]
[348021621,1736268653631,-518.34,9.595e-05,2]
[348021622,1736268653641,-616.88,9.595e-05,2]
[348021623,1736268653650,-500.0,9.595e-05,2]
[348021624,1736268653660,-500.0,9.595e-05,2]
[348021625,1736268653669,-500.0,9.595e-05,2]
[348021626,1736268653679,-500.0,9.595e-05,2]
[348021627,1736268653689,-500.0,9.595e-05,2]
[348021628,1736268653698,-500.0,9.595e-05,2]
[348021629,1736268653708,-500.0,9.595e-05,2]
[348021630,1736268653718,-500.0,9.595e-05,2]
[348021631,1736268653728,-500.0,9.595e-05,2]
[348021632,1736268653738,-500.0,9.595e-05,2]
[348021633,1736268653748,-500.0,9.595e-05,2]
[348021634,1736268653758,-500.0,9.595e-05,2]
[348021635,1736268653768,-175.49571954,9.595e-05,2]
[348021636,1736268653778,-500.0,9.595e-05,2]
[348021637,1736268653788,-870.58,9.595e-05,2]
[348021638,1736268653797,-687.56,9.595e-05,2]
[348021639,1736268653807,-500.0,9.595e-05,2]
[348021640,1736268653817,-791.82,9.595e-05,2]
[348021641,1736268653826,-500.0,9.595e-05,2]
[348021642,1736268653835,-500.0,9.595e-05,2]
[348021643,1736268653844,-500.0,9.595e-05,2]
[348021644,1736268653854,-361.13794999,9.595e-05,2]
[348021645,1736268653881,-138.86205001,9.595e-05,2]
[348021646,1736268653889,-500.0,9.595e-05,2]
[348021647,1736268653899,-500.0,9.595e-05,2]
[348021648,1736268653907,-500.0,9.595e-05,2]
[348021649,1736268653917,-927.26,9.595e-05,2]
[348021650,1736268653926,-558.34,9.595e-05,2]
[348021651,1736268653935,-500.0,9.595e-05,2]
[348021652,1736268653944,-160.539027,9.595e-05,2]
[348021654,1736268655157,-500.0,8.498e-05,2]
[348021655,1736268655167,-500.0,8.498e-05,2]
[348021656,1736268655177,-500.0,8.498e-05,2]
[348021657,1736268655186,-33.348258,8.499e-05,2]
[348021658,1736268655197,-310.24010705,8.499e-05,2]
[348021659,1736268655209,-156.41163495,8.499e-05,2]
[348021660,1736268655219,-500.0,8.772e-05,2]
[348021661,1736268655229,-500.0,9.046e-05,2]
[348021662,1736268655238,-500.0,9.046e-05,2]
[348021663,1736268655248,-500.0,9.32e-05,2]
[348021664,1736268655257,-500.0,9.32e-05,2]
[348021665,1736268655266,-572.85378793,9.593e-05,2]
[348021666,1736268655277,-244.16621207,9.593e-05,2]
[348021667,1736268655287,-500.0,9.594e-05,2]
[348021668,1736268655296,-339.460973,9.595e-05,2]
[348021669,1736268655306,-655.3,9.595e-05,2]
[348021670,1736268655315,-557.31,9.595e-05,2]
[348021671,1736268655325,-656.36,9.595e-05,2]
[348021672,1736268655334,-500.0,9.595e-05,2]
[348021673,1736268655344,-918.28,9.595e-05,2]
[348021674,1736268655353,-582.18,9.595e-05,2]
[348021675,1736268655363,-500.0,9.595e-05,2]
[348021676,1736268655372,-685.99,9.595e-05,2]
[348021677,1736268655382,-500.0,9.595e-05,2]
[348021678,1736268655391,-500.0,9.595e-05,2]
[348021679,1736268655401,-500.0,9.595e-05,2]
[348021680,1736268655411,-583.44,9.595e-05,2]
[348021681,1736268655422,-500.0,9.595e-05,2]
[348021682,1736268655431,-641.46,9.595e-05,2]
[348021683,1736268655440,-612.42,9.595e-05,2]
[348021684,1736268655450,-500.0,9.595e-05,2]
[348021685,1736268655459,-520.7,9.595e-05,2]
[348021686,1736268655469,-500.0,9.595e-05,2]
[348021687,1736268655479,-500.0,9.595e-05,2]
[348021688,1736268655487,-500.0,9.595e-05,2]
[348021689,1736268655497,-500.0,9.595e-05,2]
[348021690,1736268655507,-154.12699372,9.595e-05,2]
[348021691,1736268655519,-351.01300628,9.595e-05,2]
[348021692,1736268655532,-273.80596231,9.595e-05,2]
[348021693,1736268655544,-226.19403769,9.595e-05,2]
[348021694,1736268655553,-500.0,9.595e-05,2]
[348021695,1736268655562,-735.13,9.595e-05,2]
[348021696,1736268655574,-500.0,9.595e-05,2]
[348021697,1736268655584,-496.45096231,9.595e-05,2]
[348021698,1736268655601,-16.44903769,9.595e-05,2]
[348021699,1736268655611,-364.84848922,9.595e-05,2]
[348021700,1736268655628,-187.16988675,9.595e-05,2]
[348021701,1736268655638,-500.0,9.595e-05,2]
[348021702,1736268655647,-500.0,9.595e-05,2]
[348021703,1736268655657,-500.0,9.595e-05,2]
[348021704,1736268655667,-500.0,9.595e-05,2]
[348021705,1736268655676,-500.0,9.595e-05,2]
[348021706,1736268655687,-500.0,9.595e-05,2]
[348021707,1736268655696,-597.15,9.595e-05,2]
[348021708,1736268655705,-921.38,9.595e-05,2]
[348021709,1736268655715,-500.0,9.595e-05,2]
[348021710,1736268655724,-500.0,9.595e-05,2]
[348021711,1736268655735,-500.0,9.595e-05,2]
[348021712,1736268655744,-851.41,9.595e-05,2]
[348021713,1736268655754,-500.0,9.595e-05,2]
[348021714,1736268655764,-500.0,9.595e-05,2]
[348021715,1736268655774,-500.0,9.595e-05,2]
[348021716,1736268655783,-500.0,9.595e-05,2]
[348021717,1736268655793,-500.0,9.595e-05,2]
[348021718,1736268655803,-500.0,9.595e-05,2]
[348021719,1736268655812,-500.0,9.595e-05,2]
[348021720,1736268655821,-500.0,9.595e-05,2]
[348021721,1736268655831,-500.0,9.595e-05,2]
[348021722,1736268655842,-500.0,9.595e-05,2]
[348021723,1736268655851,-500.0,9.595e-05,2]
[348021724,1736268655861,-538.02,9.595e-05,2]
[348021725,1736268655870,-526.88,9.595e-05,2]
[348021726,1736268655879,-969.14,9.595e-05,2]
[348021727,1736268655888,-500.0,9.595e-05,2]
[348021728,1736268655897,-850.4,9.595e-05,2]
[348021729,1736268655907,-500.0,9.595e-05,2]
[348021730,1736268655917,-500.0,9.595e-05,2]
[348021731,1736268655926,-500.0,9.595e-05,2]
[348021732,1736268655935,-500.0,9.595e-05,2]
[348021733,1736268655946,-1025.87,9.595e-05,2]
[348021734,1736268655956,-877.47,9.595e-05,2]
[348021735,1736268655966,-500.0,9.595e-05,2]
[348021736,1736268655975,-500.0,9.595e-05,2]
[348021737,1736268655984,-225.25,9.595e-05,2]
[348021738,1736268655994,-615.53,9.595e-05,2]
[348021739,1736268656003,-500.0,9.595e-05,2]
[348021740,1736268656012,-500.0,9.595e-05,2]
[348021741,1736268656021,-500.0,9.595e-05,2]
[348021742,1736268656030,-590.64,9.595e-05,2]
[348021743,1736268656041,-500.0,9.595e-05,2]
[348021744,1736268656051,-500.0,9.595e-05,2]
[348021745,1736268656060,-585.59,9.595e-05,2]
[348021746,1736268656069,-500.0,9.595e-05,2]
[348021747,1736268656079,-500.0,9.595e-05,2]
[348021748,1736268656088,-646.69,9.595e-05,2]
[348021749,1736268656098,-500.0,9.595e-05,2]
[348021750,1736268656107,-500.0,9.595e-05,2]
[348021751,1736268656117,-502.90185495,9.603e-05,2]
[348021752,1736268656127,-151.80335575,9.603e-05,2]
[348021753,1736268656138,-3449.31,9.86e-05,2]
[348021754,1736268656150,-500.0,9.86e-05,2]
[348021755,1736268656159,-1127.87,9.86e-05,2]
[348021756,1736268656169,-1080.32,9.86e-05,2]
[348021757,1736268656178,-2140.99,9.86e-05,2]
[348021758,1736268656187,-500.0,9.86e-05,2]
[348021759,1736268656196,-1743.43,9.86e-05,2]
[348021760,1736268656206,-500.0,9.86e-05,2]
[348021761,1736268656215,-4639.5,9.86e-05,2]
[348021762,1736268656225,-1303.24,9.86e-05,2]
[348021763,1736268656235,-3610.9,9.86e-05,2]
[348021764,1736268656244,-734.32,9.86e-05,2]
[348021765,1736268656253,-500.0,9.86e-05,2]
[348021766,1736268656262,-500.0,9.86e-05,2]
[348021767,1736268656272,-612.11,9.86e-05,2]
[348021768,1736268656282,-500.0,9.86e-05,2]
[348021769,1736268656291,-1544.38,9.86e-05,2]
[348021770,1736268656300,-850.81,9.86e-05,2]
[348021771,1736268656310,-500.0,9.86e-05,2]
[348021772,1736268656319,-500.0,9.86e-05,2]
[348021773,1736268656328,-662.0,9.86e-05,2]
[348021774,1736268656337,-747.67,9.86e-05,2]
[348021775,1736268656347,-500.0,9.86e-05,2]
[348021776,1736268656356,-772.19,9.86e-05,2]
[348021777,1736268656365,-588.87,9.86e-05,2]
[348021778,1736268656375,-2961.16,9.86e-05,2]
[348021779,1736268656385,-590.95,9.86e-05,2]
[348021780,1736268656397,-774.32,9.86e-05,2]
[348021781,1736268656407,-655.07,9.86e-05,2]
[348021782,1736268656416,-500.0,9.86e-05,2]